[Event "DFMMLV 2019"]
[Site "Braunfels"]
[Date "2019.06.20"]
[Round "1.34"]
[White "Arnhold, Steffi"]
[Black "Yi, Wendy"]
[Result "1-0"]
[ECO "C54"]
[WhiteElo "1996"]
[BlackElo "1820"]
[Annotator "NA"]
[PlyCount "119"]
[EventDate "2019.06.20"]
[EventType "team-tourn"]
[EventCountry "GER"]
[SourceTitle "playchess.com"]
[Source "ChessBase"]
[SourceQuality "1"]
[WhiteTeam "Sachsen"]
[BlackTeam "Wuerttemberg 2"]
[TimeControl "40/5400+30:1800+30"]

1. e4 {[%emt 0:00:00]} e5 {[%emt 0:00:00]} 2. Bc4 {[%emt 0:00:00]} Bc5 {[%emt 0:01:20]} 3. Nf3 {[%emt 0:00:01]} Nc6 {[%emt 0:01:15]} 4. c3 {[%emt 0:00:15]} Nf6 {[%emt 0:01:50]} 5. d3 {[%emt 0:00:27]} d6 {[%emt 0:04:22]} 6. Bb3 {[%emt 0:00:35]} Bg4 {[%emt 0:03:47]} 7. Nbd2 {[%emt 0:03:53]} O-O {[%emt 0:04:17]} 8. h3 {[%emt 0:00:25]} Bh5 {[%emt 0:01:22]} 9. Qe2 {[%emt 0:01:03]} Re8 {[%emt 0:05:23]} 10. g4 {[%emt 0:01:40]} Bg6 {[%emt 0:03:26]} 11. Nf1 {[%emt 0:01:32]} d5 {[%emt 0:09:55]} 12. Ng3 {[%emt 0:00:58]} Qd7 {[%emt 0:20:11]} 13. Nh4 {[%emt 0:05:14]} dxe4 {[%emt 0:10:25]} 14. dxe4 {[%emt 0:00:21]} Kh8 {[%emt 0:02:43]} 15. Bd2 {[%emt 0:06:13]} Rad8 {[%emt 0:05:21]} 16. Rd1 {[%emt 0:04:11]} Qd3 {[%emt 0:01:59]} 17. Qxd3 {[%emt 0:05:52]} Rxd3 {[%emt 0:00:09]} 18. Bc2 {[%emt 0:01:42]} Rd7 {[%emt 0:01:10]} 19. O-O {[%emt 0:06:41]} Red8 {[%emt 0:02:15]} 20. Nxg6+ {[%emt 0:00:46]} hxg6 {[%emt 0:00:51]} 21. Bg5 {[%emt 0:02:35]} Kg8 {[%emt 0:01:31]} 22. Rxd7 {[%emt 0:01:55]} Rxd7 {[%emt 0:00:12]} 23. Rd1 {[%emt 0:00:19]} Kf8 {[%emt 0:01:00]} 24. Kf1 {[%emt 0:00:56]} Ke7 {[%emt 0:01:50]} 25. Ke2 {[%emt 0:00:39]} Rxd1 {[%emt 0:00:36]} 26. Bxd1 {[%emt 0:00:09]} Kd6 {[%emt 0:01:13]} 27. f3 {[%emt 0:05:34]} Nd7 {[%emt 0:01:39]} 28. b4 {[%emt 0:04:37]} Bb6 {[%emt 0:00:33]} 29. Bb3 {[%emt 0:00:41]} f6 {[%emt 0:00:50]} 30. Bc1 {[%emt 0:00:26]} Ne7 {[%emt 0:01:31]} 31. Nf1 {[%emt 0:03:06]} a5 {[%emt 0:01:49]} 32. Nd2 {[%emt 0:04:04]} c6 {[%emt 0:02:00]} 33. bxa5 {[%emt 0:03:53]} Ba7 {[%emt 0:00:37]} 34. Ba3+ {[%emt 0:04:04]} Bc5 {[%emt 0:00:41]} 35. Bb4 {[%emt 0:02:29]} Nc8 {[%emt 0:02:31]} 36. Bf7 {[%emt 0:02:32]} g5 {[%emt 0:01:12]} 37. Be8 {[%emt 0:02:28]} Bxb4 {[%emt 0:01:58]} 38. cxb4 {[%emt 0:00:24]} Nb8 {[%emt 0:00:38]} 39. Bf7 {[%emt 0:05:20]} Na6 {[%emt 0:01:53]} 40. a3 {[%emt 0:01:14]} Kc7 {[%emt 0:01:38]} 41. Bc4 {[%emt 0:32:31]} Nb8 {[%emt 0:30:45]} 42. Kd3 {[%emt 0:00:58]} Ne7 {[%emt 0:01:47]} 43. Bf7 {[%emt 0:02:12]} Nd7 {[%emt 0:00:00]} 44. Kc3 {[%emt 0:00:00]} Nf8 {[%emt 0:00:00]} 45. a4 {[%emt 0:00:00]} Neg6 {[%emt 0:00:00]} 46. b5 {[%emt 0:00:00]} Nf4 {[%emt 0:00:00]} 47. Kb4 {[%emt 0:00:00]} Nd7 {[%emt 0:00:00]} 48. Bc4 {[%emt 0:00:00]} Nb8 {[%emt 0:00:00]} 49. Bf1 {[%emt 0:00:00]} Ne6 {[%emt 0:00:00]} 50. Nb3 {[%emt 0:00:00]} Nd7 {[%emt 0:00:00]} 51. Bc4 {[%emt 0:00:00]} Nf4 {[%emt 0:00:00]} 52. Nc5 {[%emt 0:00:19]} Nxc5 {[%emt 0:00:00]} 53. Kxc5 {[%emt 0:00:09]} Nxh3 {[%emt 0:00:00]} 54. b6+ {[%emt 0:00:39]} Kb8 {[%emt 0:00:00]} 55. a6 {[%emt 0:00:28]} Ng1 {[%emt 0:00:00]} 56. axb7 {[%emt 0:02:12]} Kxb7 {[%emt 0:00:00]} 57. a5 {[%emt 0:00:10]} Nxf3 {[%emt 0:00:00]} 58. a6+ {[%emt 0:00:07]} Kb8 {[%emt 0:00:00]} 59. a7+ {[%emt 0:00:08]} Ka8 {[%emt 0:00:00]} 60. Kxc6 {[%emt 0:00:13]} 1-0

[Event "DFMMLV 2019"]
[Site "Braunfels"]
[Date "2019.06.20"]
[Round "1.35"]
[White "Lederer, Leia"]
[Black "Daemering, Katrin"]
[Result "0-1"]
[ECO "B90"]
[WhiteElo "1728"]
[BlackElo "2003"]
[Annotator "NA"]
[PlyCount "90"]
[EventDate "2019.06.20"]
[EventType "team-tourn"]
[EventCountry "GER"]
[SourceTitle "playchess.com"]
[Source "ChessBase"]
[SourceQuality "1"]
[WhiteTeam "Wuerttemberg 2"]
[BlackTeam "Sachsen"]
[TimeControl "40/5400+30:1800+30"]

1. e4 {[%emt 0:00:00]} c5 {[%emt 0:00:24]} 2. Nf3 {[%emt 0:00:00]} d6 {[%emt 0:00:51]} 3. d4 {[%emt 0:00:00]} cxd4 {[%emt 0:00:03]} 4. Nxd4 {[%emt 0:00:00]} Nf6 {[%emt 0:00:03]} 5. Nc3 {[%emt 0:00:11]} a6 {[%emt 0:00:10]} 6. Be3 {[%emt 0:00:20]} Qc7 {[%emt 0:00:35]} 7. Bd3 {[%emt 0:01:21]} e6 {[%emt 0:01:06]} 8. f3 {[%emt 0:08:28]} b5 {[%emt 0:03:10]} 9. Qd2 {[%emt 0:01:59]} Nbd7 {[%emt 0:03:06]} 10. a4 {[%emt 0:03:04]} bxa4 {[%emt 0:05:29]} 11. Rxa4 {[%emt 0:02:34]} Qb7 {[%emt 0:20:28]} 12. b4 {[%emt 0:14:13]} Be7 {[%emt 0:08:21]} 13. O-O {[%emt 0:02:44]} Nb6 {[%emt 0:12:03]} 14. Ra2 {[%emt 0:06:09]} e5 {[%emt 0:10:10]} 15. Nb3 {[%emt 0:09:35]} Be6 {[%emt 0:01:45]} 16. Na5 {[%emt 0:16:24]} Qc7 {[%emt 0:01:48]} 17. Nd5 {[%emt 0:04:47]} Nfxd5 {[%emt 0:04:18]} 18. exd5 {[%emt 0:00:09]} Bxd5 {[%emt 0:01:47]} 19. Ra3 {[%emt 0:09:22]} O-O {[%emt 0:09:39]} 20. Kh1 {[%emt 0:02:03]} Bd8 {[%emt 0:09:24]} 21. c4 {[%emt 0:08:58]} Be6 {[%emt 0:00:56]} 22. c5 {[%emt 0:00:41]} Nd5 {[%emt 0:01:04]} 23. Be4 {[%emt 0:00:57]} Nxe3 {[%emt 0:01:16]} 24. Qxe3 {[%emt 0:00:14]} d5 {[%emt 0:00:21]} 25. Bd3 {[%emt 0:01:30]} Rb8 {[%emt 0:00:18]} 26. Rb1 {[%emt 0:00:26]} Bc8 {[%emt 0:00:31]} 27. Qe2 {[%emt 0:00:46]} Be7 {[%emt 0:00:57]} 28. Rc3 {[%emt 0:02:09]} Bf6 {[%emt 0:00:39]} 29. Bxa6 {[%emt 0:00:34]} e4 {[%emt 0:00:21]} 30. Rcb3 {[%emt 0:01:11]} exf3 {[%emt 0:00:09]} 31. Rxf3 {[%emt 0:00:38]} Bg4 {[%emt 0:00:18]} 32. Bd3 {[%emt 0:00:46]} Rfe8 {[%emt 0:00:41]} 33. Qf2 {[%emt 0:00:31]} Bxf3 {[%emt 0:00:13]} 34. Qxf3 {[%emt 0:00:04]} Qxa5 {[%emt 0:01:58]} 35. Bxh7+ {[%emt 0:02:22]} Kf8 {[%emt 0:00:34]} 36. h3 {[%emt 0:01:41]} Rxb4 {[%emt 0:00:18]} 37. Rf1 {[%emt 0:00:57]} Qxc5 {[%emt 0:00:18]} 38. Qh5 {[%emt 0:00:34]} Rh4 {[%emt 0:01:21]} 39. Qf5 {[%emt 0:00:13]} Rhe4 {[%emt 0:00:39]} 40. Qh5 {[%emt 0:00:25]} Re1 {[%emt 0:00:07]} 41. Bd3 {[%emt 0:30:54]} Rxf1+ {[%emt 0:30:43]} 42. Bxf1 {[%emt 0:00:05]} g6 {[%emt 0:00:27]} 43. Qh6+ {[%emt 0:00:00]} Bg7 {[%emt 0:00:00]} 44. Qf4 {[%emt 0:00:00]} d4 {[%emt 0:00:00]} 45. Qf2 {[%emt 0:00:00]} Qc1 {[%emt 0:00:00]} 0-1

[Event "DFMMLV 2019"]
[Site "Braunfels"]
[Date "2019.06.20"]
[Round "1.36"]
[White "Nagel, Verena"]
[Black "Roesler, Hannah Clara Hed"]
[Result "1-0"]
[ECO "D05"]
[WhiteElo "2029"]
[BlackElo "1638"]
[Annotator "NA"]
[PlyCount "55"]
[EventDate "2019.06.20"]
[EventType "team-tourn"]
[EventCountry "GER"]
[SourceTitle "playchess.com"]
[Source "ChessBase"]
[SourceQuality "1"]
[WhiteTeam "Sachsen"]
[TimeControl "40/5400+30:1800+30"]

1. d4 {[%emt 0:00:00]} Nf6 {[%emt 0:00:18]} 2. Nf3 {[%emt 0:01:30]} e6 {[%emt 0:02:16]} 3. e3 {[%emt 0:00:28]} d5 {[%emt 0:02:21]} 4. Bd3 {[%emt 0:00:30]} c5 {[%emt 0:01:31]} 5. b3 {[%emt 0:00:12]} Nc6 {[%emt 0:01:43]} 6. Bb2 {[%emt 0:02:06]} b6 {[%emt 0:06:57]} 7. Nbd2 {[%emt 0:01:26]} Bb7 {[%emt 0:02:01]} 8. O-O {[%emt 0:02:35]} Rc8 {[%emt 0:07:17]} 9. c4 {[%emt 0:03:50]} Be7 {[%emt 0:07:10]} 10. Qe2 {[%emt 0:06:10]} O-O {[%emt 0:04:34]} 11. Rad1 {[%emt 0:00:43]} Nb4 {[%emt 0:03:08]} 12. Bb1 {[%emt 0:00:56]} Qc7 {[%emt 0:03:31]} 13. Ne5 {[%emt 0:05:02]} cxd4 {[%emt 0:06:05]} 14. exd4 {[%emt 0:03:55]} Nd7 {[%emt 0:02:22]} 15. f4 {[%emt 0:03:20]} dxc4 {[%emt 0:02:39]} 16. bxc4 {[%emt 0:01:10]} Nxe5 {[%emt 0:02:02]} 17. fxe5 {[%emt 0:00:15]} Ba6 {[%emt 0:04:46]} 18. a3 {[%emt 0:08:31]} Nc6 {[%emt 0:02:48]} 19. Rf3 {[%emt 0:01:53]} h6 {[%emt 0:05:51]} 20. Rg3 {[%emt 0:00:53]} Bg5 {[%emt 0:05:54]} 21. Ne4 {[%emt 0:03:27]} Qe7 {[%emt 0:02:30]} 22. Bd3 {[%emt 0:08:46]} Rfd8 {[%emt 0:03:19]} 23. Nxg5 {[%emt 0:08:38]} hxg5 {[%emt 0:00:29]} 24. Qh5 {[%emt 0:00:22]} f6 {[%emt 0:02:03]} 25. Bg6 {[%emt 0:01:01]} Qc7 {[%emt 0:05:04]} 26. Qh7+ {[%emt 0:00:12]} Kf8 {[%emt 0:00:05]} 27. Qh8+ {[%emt 0:00:07]} Ke7 {[%emt 0:00:07]} 28. Qxg7# {[%emt 0:00:05]} 1-0

[Event "DFMMLV 2019"]
[Site "Braunfels"]
[Date "2019.06.20"]
[Round "1.37"]
[White "Hoeglauer, Jenny"]
[Black "Just, Anita"]
[Result "0-1"]
[ECO "C15"]
[WhiteElo "1703"]
[BlackElo "1866"]
[Annotator "NA"]
[PlyCount "104"]
[EventDate "2019.06.20"]
[EventType "team-tourn"]
[EventCountry "GER"]
[SourceTitle "playchess.com"]
[Source "ChessBase"]
[SourceQuality "1"]
[WhiteTeam "Wuerttemberg 2"]
[BlackTeam "Sachsen"]
[TimeControl "40/5400+30:1800+30"]

1. e4 {[%emt 0:00:00]} e6 {[%emt 0:00:00]} 2. d4 {[%emt 0:00:00]} d5 {[%emt 0:00:00]} 3. Nc3 {[%emt 0:00:00]} Bb4 {[%emt 0:00:02]} 4. exd5 {[%emt 0:02:28]} exd5 {[%emt 0:00:28]} 5. Nf3 {[%emt 0:01:05]} Nc6 {[%emt 0:01:28]} 6. Bb5 {[%emt 0:01:15]} Bg4 {[%emt 0:01:30]} 7. O-O {[%emt 0:00:44]} Bxc3 {[%emt 0:00:30]} 8. bxc3 {[%emt 0:00:06]} Nge7 {[%emt 0:00:46]} 9. Re1 {[%emt 0:02:22]} O-O {[%emt 0:02:38]} 10. Ba3 {[%emt 0:06:00]} Re8 {[%emt 0:01:53]} 11. h3 {[%emt 0:07:41]} Bd7 {[%emt 0:08:28]} 12. Qd3 {[%emt 0:05:20]} Bf5 {[%emt 0:09:49]} 13. Bxe7 {[%emt 0:02:15]} Nxe7 {[%emt 0:00:09]} 14. Qxf5 {[%emt 0:03:04]} Nxf5 {[%emt 0:02:12]} 15. Rxe8+ {[%emt 0:00:06]} Qxe8 {[%emt 0:00:04]} 16. Bxe8 {[%emt 0:00:05]} Rxe8 {[%emt 0:00:05]} 17. Kf1 {[%emt 0:01:10]} Nd6 {[%emt 0:01:53]} 18. Rb1 {[%emt 0:07:12]} b6 {[%emt 0:03:13]} 19. Nd2 {[%emt 0:01:35]} Kf8 {[%emt 0:02:46]} 20. a4 {[%emt 0:01:49]} a5 {[%emt 0:01:50]} 21. g4 {[%emt 0:09:08]} Re6 {[%emt 0:05:12]} 22. Rb3 {[%emt 0:10:44]} Ke7 {[%emt 0:04:47]} 23. f3 {[%emt 0:05:01]} Kd7 {[%emt 0:12:07]} 24. Kf2 {[%emt 0:01:19]} Kc6 {[%emt 0:00:41]} 25. Rb1 {[%emt 0:02:06]} f5 {[%emt 0:09:26]} 26. Rd1 {[%emt 0:01:59]} f4 {[%emt 0:04:04]} 27. c4 {[%emt 0:09:32]} Re3 {[%emt 0:06:41]} 28. c5 {[%emt 0:00:27]} bxc5 {[%emt 0:03:07]} 29. dxc5 {[%emt 0:00:09]} Nb7 {[%emt 0:02:39]} 30. Nb3 {[%emt 0:00:51]} Nxc5 {[%emt 0:03:19]} 31. Nxa5+ {[%emt 0:00:16]} Kb6 {[%emt 0:01:05]} 32. Rxd5 {[%emt 0:00:24]} Rc3 {[%emt 0:01:31]} 33. Nb3 {[%emt 0:06:57]} Rxc2+ {[%emt 0:00:15]} 34. Rd2 {[%emt 0:00:06]} Rxd2+ {[%emt 0:01:56]} 35. Nxd2 {[%emt 0:00:04]} Nxa4 {[%emt 0:00:12]} 36. Ne4 {[%emt 0:00:58]} Nc5 {[%emt 0:01:13]} 37. h4 {[%emt 0:02:15]} Kc6 {[%emt 0:01:40]} 38. Ng5 {[%emt 0:01:58]} h6 {[%emt 0:00:43]} 39. Nh3 {[%emt 0:02:54]} Ne6 {[%emt 0:00:12]} 40. Ke2 {[%emt 0:00:07]} Kd5 {[%emt 0:00:24]} 41. Kd3 {[%emt 0:30:29]} c5 {[%emt 0:35:07]} 42. Ng1 {[%emt 0:00:00]} Nd4 {[%emt 0:00:00]} 43. h5 {[%emt 0:00:00]} c4+ {[%emt 0:00:00]} 44. Kc3 {[%emt 0:00:00]} Kc5 {[%emt 0:00:00]} 45. Nh3 {[%emt 0:00:00]} Nxf3 {[%emt 0:00:00]} 46. Nxf4 {[%emt 0:00:00]} Ng5 {[%emt 0:00:00]} 47. Kc2 {[%emt 0:00:00]} Kd4 {[%emt 0:00:00]} 48. Ne2+ {[%emt 0:00:00]} Ke3 {[%emt 0:00:00]} 49. Ng3 {[%emt 0:00:00]} Kf4 {[%emt 0:00:00]} 50. Nf5 {[%emt 0:00:00]} Ne6 {[%emt 0:00:00]} 51. Kd2 {[%emt 0:00:00]} Kxg4 {[%emt 0:00:00]} 52. Ne3+ {[%emt 0:00:00]} Kxh5 {[%emt 0:00:00]} 0-1

[Event "DFMMLV 2019"]
[Site "Braunfels"]
[Date "2019.06.20"]
[Round "1.38"]
[White "Lowke, Kathrin"]
[Black "Zell, Mirjam"]
[Result "1-0"]
[ECO "C70"]
[WhiteElo "1887"]
[BlackElo "1660"]
[Annotator "NA"]
[PlyCount "103"]
[EventDate "2019.06.20"]
[EventType "team-tourn"]
[EventCountry "GER"]
[SourceTitle "playchess.com"]
[Source "ChessBase"]
[SourceQuality "1"]
[WhiteTeam "Sachsen"]
[BlackTeam "Wuerttemberg 2"]
[TimeControl "40/5400+30:1800+30"]

1. e4 {[%emt 0:00:00]} e5 {[%emt 0:00:00]} 2. Nf3 {[%emt 0:00:08]} Nc6 {[%emt 0:00:00]} 3. Bb5 {[%emt 0:00:40]} a6 {[%emt 0:00:13]} 4. Ba4 {[%emt 0:00:05]} Bc5 {[%emt 0:01:53]} 5. O-O {[%emt 0:00:55]} b5 {[%emt 0:01:22]} 6. Bb3 {[%emt 0:02:39]} Nf6 {[%emt 0:01:47]} 7. c3 {[%emt 0:02:16]} d6 {[%emt 0:04:11]} 8. h3 {[%emt 0:00:47]} Bb7 {[%emt 0:06:23]} 9. d4 {[%emt 0:10:29]} Ba7 {[%emt 0:01:34]} 10. Bg5 {[%emt 0:02:28]} O-O {[%emt 0:03:21]} 11. Bd5 {[%emt 0:05:37]} Qc8 {[%emt 0:12:14]} 12. Bxf6 {[%emt 0:02:45]} gxf6 {[%emt 0:00:30]} 13. Nh4 {[%emt 0:05:29]} Ne7 {[%emt 0:19:17]} 14. Bxb7 {[%emt 0:03:13]} Qxb7 {[%emt 0:00:12]} 15. Qf3 {[%emt 0:01:08]} Kg7 {[%emt 0:00:56]} 16. Rd1 {[%emt 0:02:55]} Rg8 {[%emt 0:09:29]} 17. Rd3 {[%emt 0:02:22]} Ng6 {[%emt 0:02:45]} 18. Nf5+ {[%emt 0:01:00]} Kf8 {[%emt 0:03:56]} 19. Nh6 {[%emt 0:13:49]} Rg7 {[%emt 0:04:57]} 20. Qxf6 {[%emt 0:20:01]} Qxe4 {[%emt 0:06:54]} 21. Re3 {[%emt 0:06:13]} Qh4 {[%emt 0:01:47]} 22. Qxg7+ {[%emt 0:00:15]} Kxg7 {[%emt 0:01:23]} 23. Nf5+ {[%emt 0:00:04]} Kf8 {[%emt 0:01:29]} 24. Nxh4 {[%emt 0:00:04]} Nxh4 {[%emt 0:00:17]} 25. Re4 {[%emt 0:01:08]} Ng6 {[%emt 0:01:08]} 26. dxe5 {[%emt 0:00:49]} Nxe5 {[%emt 0:00:26]} 27. Na3 {[%emt 0:04:49]} Nd3 {[%emt 0:03:10]} 28. Re2 {[%emt 0:00:15]} Re8 {[%emt 0:01:35]} 29. Rxe8+ {[%emt 0:01:15]} Kxe8 {[%emt 0:00:07]} 30. Rb1 {[%emt 0:02:11]} Nxf2 {[%emt 0:01:13]} 31. Kf1 {[%emt 0:00:14]} Nd3 {[%emt 0:00:49]} 32. Ke2 {[%emt 0:00:34]} Ne5 {[%emt 0:04:18]} 33. Nc2 {[%emt 0:00:18]} d5 {[%emt 0:02:39]} 34. Nb4 {[%emt 0:02:31]} d4 {[%emt 0:02:01]} 35. cxd4 {[%emt 0:00:26]} Bxd4 {[%emt 0:00:12]} 36. Nxa6 {[%emt 0:00:05]} Bb6 {[%emt 0:01:31]} 37. Nb4 {[%emt 0:00:10]} Kd7 {[%emt 0:01:22]} 38. Nd5 {[%emt 0:00:28]} Bd4 {[%emt 0:00:15]} 39. Nf6+ {[%emt 0:00:11]} Ke7 {[%emt 0:00:39]} 40. Ne4 {[%emt 0:02:06]} Nc4 {[%emt 0:00:45]} 41. b3 {[%emt 0:31:04]} Nd6 {[%emt 0:05:13]} 42. Nd2 {[%emt 0:00:00]} b4 {[%emt 0:03:24]} 43. Rf1 {[%emt 0:00:00]} f6 {[%emt 0:02:25]} 44. Kd3 {[%emt 0:00:00]} Bc3 {[%emt 0:03:22]} 45. Ne4 {[%emt 0:00:00]} Nxe4 {[%emt 0:01:31]} 46. Kxe4 {[%emt 0:00:00]} Ke6 {[%emt 0:01:07]} 47. Rf5 {[%emt 0:00:00]} h6 {[%emt 0:00:54]} 48. g4 {[%emt 0:00:00]} Kd6 {[%emt 0:02:51]} 49. Kd3 {[%emt 0:00:00]} Be5 {[%emt 0:01:17]} 50. Kc4 {[%emt 0:00:00]} Bc3 {[%emt 0:01:25]} 51. Rh5 {[%emt 0:00:00]} Bd2 {[%emt 0:00:23]} 52. Rd5+ {[%emt 0:00:00] Kxd5+} 1-0

[Event "DFMMLV 2019"]
[Site "Braunfels"]
[Date "2019.06.20"]
[Round "1.39"]
[White "Zell, Hannah"]
[Black "von Keyserlingk, Chanda"]
[Result "1/2-1/2"]
[ECO "B20"]
[WhiteElo "1473"]
[BlackElo "1702"]
[Annotator "NA"]
[PlyCount "65"]
[EventDate "2019.06.20"]
[EventType "team-tourn"]
[EventCountry "GER"]
[SourceTitle "playchess.com"]
[Source "ChessBase"]
[SourceQuality "1"]
[WhiteTeam "Wuerttemberg 2"]
[TimeControl "40/5400+30:1800+30"]

1. e4 {[%emt 0:00:00]} c5 {[%emt 0:00:00]} 2. c4 {[%emt 0:00:49]} d6 {[%emt 0:00:44]} 3. g3 {[%emt 0:00:24]} g6 {[%emt 0:00:33]} 4. Bg2 {[%emt 0:00:07]} Bg7 {[%emt 0:00:06]} 5. Nc3 {[%emt 0:00:08]} Nf6 {[%emt 0:01:30]} 6. Nge2 {[%emt 0:00:29]} Nc6 {[%emt 0:01:55]} 7. d3 {[%emt 0:00:25]} Bd7 {[%emt 0:03:02]} 8. O-O {[%emt 0:01:13]} O-O {[%emt 0:00:51]} 9. Rb1 {[%emt 0:01:02]} Qc8 {[%emt 0:01:27]} 10. a3 {[%emt 0:02:14]} Bh3 {[%emt 0:11:07]} 11. f4 {[%emt 0:04:29]} Bxg2 {[%emt 0:00:33]} 12. Kxg2 {[%emt 0:00:15]} h5 {[%emt 0:06:40]} 13. Be3 {[%emt 0:08:23]} Ng4 {[%emt 0:05:03]} 14. Bg1 {[%emt 0:05:31]} e6 {[%emt 0:02:25]} 15. Qd2 {[%emt 0:03:19]} a6 {[%emt 0:02:58]} 16. h3 {[%emt 0:01:27]} Nh6 {[%emt 0:03:17]} 17. Be3 {[%emt 0:01:35]} f5 {[%emt 0:03:05]} 18. b4 {[%emt 0:03:36]} Nd4 {[%emt 0:01:45]} 19. Nd1 {[%emt 0:06:27]} b6 {[%emt 0:07:24]} 20. Nf2 {[%emt 0:07:25]} Qc6 {[%emt 0:04:57]} 21. Bxd4 {[%emt 0:05:15]} cxd4 {[%emt 0:00:27]} 22. Kh2 {[%emt 0:02:18]} e5 {[%emt 0:02:08]} 23. Qa2 {[%emt 0:05:26]} Kh7 {[%emt 0:04:09]} 24. Rfc1 {[%emt 0:03:56]} Qd7 {[%emt 0:04:46]} 25. a4 {[%emt 0:02:44]} Rfc8 {[%emt 0:01:54]} 26. a5 {[%emt 0:02:32]} b5 {[%emt 0:03:23]} 27. Rb2 {[%emt 0:06:25]} bxc4 {[%emt 0:05:32]} 28. Rxc4 {[%emt 0:02:27]} fxe4 {[%emt 0:01:53]} 29. Nxe4 {[%emt 0:08:55]} Nf5 {[%emt 0:01:14]} 30. Rxc8 {[%emt 0:04:35]} Rxc8 {[%emt 0:02:38]} 31. Ng5+ {[%emt 0:00:17]} Kh8 {[%emt 0:01:47]} 32. Nf7+ {[%emt 0:00:08]} Kh7 {[%emt 0:00:28]} 33. Ng5+ {[%emt 0:00:06]} 1/2-1/2

[Event "DFMMLV 2019"]
[Site "Braunfels"]
[Date "2019.06.20"]
[Round "1.40"]
[White "Gottschall, Ina"]
[Black "Krotsch, Maxi"]
[Result "1-0"]
[ECO "D02"]
[WhiteElo "1637"]
[BlackElo "1109"]
[Annotator "NA"]
[PlyCount "77"]
[EventDate "2019.06.20"]
[EventType "team-tourn"]
[EventCountry "GER"]
[SourceTitle "playchess.com"]
[Source "ChessBase"]
[SourceQuality "1"]
[WhiteTeam "Sachsen"]
[BlackTeam "Wuerttemberg 2"]
[TimeControl "40/5400+30:1800+30"]

1. d4 {[%emt 0:00:00]} d5 {[%emt 0:00:00]} 2. Nf3 {[%emt 0:00:00]} Nf6 {[%emt 0:00:24]} 3. h3 {[%emt 0:00:56]} Nc6 {[%emt 0:01:39]} 4. c3 {[%emt 0:00:12]} Bf5 {[%emt 0:01:16]} 5. Bf4 {[%emt 0:01:12]} e6 {[%emt 0:01:23]} 6. Nbd2 {[%emt 0:00:31]} Bd6 {[%emt 0:04:19]} 7. Ne5 {[%emt 0:13:37]} Nh5 {[%emt 0:07:45]} 8. Nxc6 {[%emt 0:01:43]} bxc6 {[%emt 0:01:40]} 9. Bxd6 {[%emt 0:00:18]} Qxd6 10. e4 {[%emt 0:12:24]} dxe4 {[%emt 0:01:30]} 11. Qxh5 {[%emt 0:04:22]} Rb8 {[%emt 0:02:49]} 12. Nc4 {[%emt 0:03:02]} Qd5 {[%emt 0:01:01]} 13. Ne3 {[%emt 0:06:30]} Qd7 {[%emt 0:02:56]} 14. b3 {[%emt 0:06:40]} h6 {[%emt 0:08:42]} 15. Nc4 {[%emt 0:08:01]} g6 {[%emt 0:01:12]} 16. Qd1 {[%emt 0:02:29]} Qe7 {[%emt 0:03:52]} 17. g4 {[%emt 0:03:45]} Qh4 {[%emt 0:02:35]} 18. gxf5 {[%emt 0:00:46]} gxf5 {[%emt 0:01:34]} 19. Qe2 {[%emt 0:03:33]} Rb5 {[%emt 0:01:43]} 20. Rg1 {[%emt 0:07:59]} c5 {[%emt 0:00:52]} 21. Ne5 {[%emt 0:02:40]} Ra5 {[%emt 0:01:00]} 22. Nc6 {[%emt 0:04:53]} Ra3 {[%emt 0:00:53]} 23. O-O-O {[%emt 0:02:12]} Qf6 {[%emt 0:00:47]} 24. Kb2 {[%emt 0:00:52]} Rxa2+ {[%emt 0:01:14]} 25. Kxa2 {[%emt 0:00:09]} Kd7 {[%emt 0:00:15]} 26. Ne5+ {[%emt 0:00:28]} Ke8 {[%emt 0:00:44]} 27. Qb5+ {[%emt 0:00:25]} Kf8 {[%emt 0:00:32]} 28. Nd7+ {[%emt 0:00:09]} Ke7 {[%emt 0:00:20]} 29. Nxf6 {[%emt 0:00:13]} Kxf6 {[%emt 0:00:16]} 30. Qxc5 {[%emt 0:00:12]} Rf8 {[%emt 0:00:21]} 31. Qe5+ {[%emt 0:00:19]} Ke7 {[%emt 0:00:18]} 32. d5 {[%emt 0:02:19]} Rb8 {[%emt 0:00:27]} 33. Qxc7+ {[%emt 0:01:06]} Kf6 {[%emt 0:01:59]} 34. d6 {[%emt 0:01:14]} Rb6 {[%emt 0:00:30]} 35. Qe7+ {[%emt 0:00:54]} Ke5 {[%emt 0:00:12]} 36. Qxf7 {[%emt 0:00:24]} Ra6+ {[%emt 0:00:29]} 37. Kb2 {[%emt 0:00:13]} Rxd6 {[%emt 0:00:43]} 38. Qg7+ {[%emt 0:00:57]} Kf4 39. Qg3# 1-0

[Event "DFMMLV 2019"]
[Site "Braunfels"]
[Date "2019.06.20"]
[Round "1.41"]
[White "Malachowski, Margrit"]
[Black "Krasnopeyeva, Julia"]
[Result "1/2-1/2"]
[ECO "B20"]
[WhiteElo "2080"]
[BlackElo "1922"]
[Annotator "NA"]
[PlyCount "79"]
[EventDate "2019.06.20"]
[EventType "team-tourn"]
[EventCountry "GER"]
[SourceTitle "playchess.com"]
[Source "ChessBase"]
[SourceQuality "1"]
[BlackTeam "Rheinland Pfalz"]
[TimeControl "40/5400+30:1800+30"]

1. e4 {[%emt 0:00:00]} c5 {[%emt 0:00:00]} 2. b3 {[%emt 0:00:18]} Nc6 {[%emt 0:02:17]} 3. Bb2 {[%emt 0:00:29]} e5 {[%emt 0:02:11]} 4. Bb5 {[%emt 0:01:50]} Nd4 {[%emt 0:02:00]} 5. Be2 {[%emt 0:00:37]} Nf6 {[%emt 0:01:29]} 6. d3 {[%emt 0:00:44]} Bd6 {[%emt 0:03:23]} 7. Nd2 {[%emt 0:01:16]} Bc7 {[%emt 0:02:18]} 8. Ngf3 {[%emt 0:05:06]} O-O {[%emt 0:01:06]} 9. c3 {[%emt 0:01:10]} Nxe2 {[%emt 0:01:15]} 10. Qxe2 {[%emt 0:00:11]} d5 {[%emt 0:01:38]} 11. O-O {[%emt 0:01:14]} Re8 {[%emt 0:03:34]} 12. Rfe1 {[%emt 0:02:49]} d4 {[%emt 0:04:20]} 13. Rac1 {[%emt 0:07:04]} b6 {[%emt 0:04:25]} 14. cxd4 {[%emt 0:15:08]} exd4 {[%emt 0:00:31]} 15. b4 {[%emt 0:01:05]} Nd5 {[%emt 0:00:50]} 16. bxc5 {[%emt 0:12:05]} Nf4 {[%emt 0:00:13]} 17. Qf1 {[%emt 0:00:11]} Ba6 {[%emt 0:00:21]} 18. Nc4 {[%emt 0:00:16]} bxc5 {[%emt 0:00:27]} 19. g3 {[%emt 0:03:28]} Ne6 {[%emt 0:01:12]} 20. Qe2 {[%emt 0:05:15]} Rb8 {[%emt 0:02:34]} 21. Ba3 {[%emt 0:02:42]} Ba5 {[%emt 0:00:37]} 22. Red1 {[%emt 0:02:08]} Bc3 {[%emt 0:02:08]} 23. Nfe5 {[%emt 0:00:23]} Qc7 {[%emt 0:04:38]} 24. Rb1 {[%emt 0:04:22]} f6 {[%emt 0:00:43]} 25. Nf3 {[%emt 0:01:07]} Qd7 {[%emt 0:04:29]} 26. Rxb8 {[%emt 0:09:32]} Rxb8 {[%emt 0:00:08]} 27. Bc1 {[%emt 0:00:32]} Bxc4 {[%emt 0:03:25]} 28. dxc4 {[%emt 0:00:09]} Qb7 {[%emt 0:01:52]} 29. e5 {[%emt 0:03:28]} fxe5 {[%emt 0:02:44]} 30. Nxe5 {[%emt 0:00:36]} Re8 {[%emt 0:02:30]} 31. Qh5 {[%emt 0:04:09]} g6 {[%emt 0:01:57]} 32. Qg4 {[%emt 0:01:59]} Qc7 {[%emt 0:05:05]} 33. f4 {[%emt 0:03:54]} Ng7 {[%emt 0:03:07]} 34. Qf3 {[%emt 0:00:44]} Kf8 {[%emt 0:04:42]} 35. g4 {[%emt 0:01:41]} Qc8 {[%emt 0:04:21]} 36. h3 {[%emt 0:00:54]} Re7 {[%emt 0:02:46]} 37. Qd5 {[%emt 0:00:47]} Ne8 {[%emt 0:01:52]} 38. Rf1 {[%emt 0:02:41]} Nf6 {[%emt 0:00:54]} 39. Qf3 {[%emt 0:00:08]} Qb7 {[%emt 0:01:06]} 40. Ba3 {[%emt 0:03:46]} 1/2-1/2